[Event "*** Titled Tuesday Blitz"]
[Site "Chess.com"]
[Date "2018.11.06"]
[Round "10"]
[White "kleinebeer98"]
[Black "kuli4ik"]
[Result "1-0"]
[WhiteElo "2659"]
[BlackElo "2785"]
[TimeControl "180+2"]
[EndTime "15:18:02 PST"]
[Termination "kleinebeer98 won by resignation"]

1. e4 {[%clk 0:03:01.9]} 1... e6 {[%clk 0:02:54.2]} 2. d4 {[%clk 0:03:02.8]}
2... d5 {[%clk 0:02:55.1]} 3. Bd3 {[%clk 0:03:04.1]} 3... dxe4 {[%clk
0:02:55.6]} 4. Bxe4 {[%clk 0:03:06]} 4... Nf6 {[%clk 0:02:57.2]} 5. Bf3 {[%clk
0:03:07.3]} 5... Nbd7 {[%clk 0:02:59.1]} 6. Ne2 {[%clk 0:03:05.5]} 6... Bd6
{[%clk 0:03:00.4]} 7. O-O {[%clk 0:03:06.2]} 7... O-O {[%clk 0:03:01.5]} 8. c4
{[%clk 0:03:03.1]} 8... c6 {[%clk 0:03:02.2]} 9. Nbc3 {[%clk 0:03:03.8]} 9... e5
{[%clk 0:03:03.4]} 10. Bg5 {[%clk 0:03:01.9]} 10... h6 {[%clk 0:03:04.2]} 11.
Bh4 {[%clk 0:03:03]} 11... g5 {[%clk 0:03:03.9]} 12. Bg3 {[%clk 0:03:01.9]}
12... g4 {[%clk 0:03:05.3]} 13. Be4 {[%clk 0:03:03]} 13... Re8 {[%clk
0:02:59.9]} 14. Bc2 {[%clk 0:02:57.8]} 14... Nh5 {[%clk 0:02:54.5]} 15. Qd3
{[%clk 0:02:50.6]} 15... Nf8 {[%clk 0:02:48.6]} 16. dxe5 {[%clk 0:02:42.1]}
16... Bc7 {[%clk 0:02:49.8]} 17. Qxd8 {[%clk 0:02:28.6]} 17... Rxd8 {[%clk
0:02:51.7]} 18. Rfe1 {[%clk 0:02:25.3]} 18... Be6 {[%clk 0:02:34.8]} 19. Nf4
{[%clk 0:02:17.4]} 19... Nxg3 {[%clk 0:02:28.2]} 20. hxg3 {[%clk 0:02:19.3]}
20... Bxc4 {[%clk 0:02:27.9]} 21. Nh5 {[%clk 0:02:16]} 21... Be6 {[%clk
0:02:23.4]} 22. Re4 {[%clk 0:02:03.5]} 22... Rd2 {[%clk 0:02:13.1]} 23. Bb3
{[%clk 0:02:01.5]} 23... Bf5 {[%clk 0:01:54]} 24. Rf4 {[%clk 0:02:00.8]} 24...
Bg6 {[%clk 0:01:55.2]} 25. Rxg4 {[%clk 0:01:41.8]} 25... Bxe5 {[%clk 0:01:55.9]}
26. Re1 {[%clk 0:01:35.1]} 26... Bd4 {[%clk 0:01:43.6]} 27. Ne4 {[%clk
0:00:58.7]} 27... Kh8 {[%clk 0:01:35.1]} 28. Nxd2 {[%clk 0:00:58.3]} 28... Bxb2
{[%clk 0:01:31.7]} 29. Nf4 {[%clk 0:00:57.6]} 29... Bf5 {[%clk 0:01:32.1]} 30.
Rh4 {[%clk 0:00:58.8]} 30... Bc3 {[%clk 0:01:28.3]} 31. Re2 {[%clk 0:00:57.8]}
31... Rd8 {[%clk 0:01:26.9]} 32. Ne4 {[%clk 0:00:58.2]} 32... Bg7 {[%clk
0:01:25.5]} 33. Ng5 {[%clk 0:00:59.2]} 33... Rd4 {[%clk 0:01:11.5]} 34. Nxf7+
{[%clk 0:00:58.7]} 34... Kh7 {[%clk 0:01:12.9]} 35. Nxh6 {[%clk 0:00:55.1]}
35... Bxh6 {[%clk 0:01:13.6]} 36. Re7+ {[%clk 0:00:56.6]} 1-0

[Event "*** Titled Tuesday Blitz"]
[Site "Chess.com"]
[Date "2018.11.06"]
[Round "10"]
[White "Blagorod"]
[Black "Perecke"]
[Result "1-0"]
[WhiteElo "2101"]
[BlackElo "1986"]
[TimeControl "180+2"]
[EndTime "15:18:02 PST"]
[Termination "Blagorod won by resignation"]

1. e4 {[%clk 0:03:01.9]} 1... e5 {[%clk 0:03:00.3]} 2. Nf3 {[%clk 0:03:02.5]}
2... Nc6 {[%clk 0:02:59.9]} 3. Bb5 {[%clk 0:03:03.2]} 3... a6 {[%clk 0:03:01.2]}
4. Ba4 {[%clk 0:03:04.3]} 4... Nf6 {[%clk 0:03:02.4]} 5. O-O {[%clk 0:03:04.6]}
5... Be7 {[%clk 0:03:03.6]} 6. d3 {[%clk 0:03:03.4]} 6... b5 {[%clk 0:03:01.3]}
7. Bb3 {[%clk 0:03:04.3]} 7... d6 {[%clk 0:03:02.8]} 8. a4 {[%clk 0:03:05.2]}
8... Bb7 {[%clk 0:03:01.9]} 9. Nc3 {[%clk 0:03:02.4]} 9... b4 {[%clk 0:02:52.9]}
10. Nd5 {[%clk 0:03:01.9]} 10... O-O {[%clk 0:02:39]} 11. a5 {[%clk 0:03:03]}
11... Nxd5 {[%clk 0:02:18.2]} 12. Bxd5 {[%clk 0:02:58.8]} 12... Qd7 {[%clk
0:02:15.2]} 13. Bd2 {[%clk 0:02:55.5]} 13... Rab8 {[%clk 0:02:04]} 14. Qe1
{[%clk 0:02:51.2]} 14... Nd4 {[%clk 0:01:57]} 15. Nxd4 {[%clk 0:02:39.7]} 15...
Bxd5 {[%clk 0:01:57]} 16. exd5 {[%clk 0:02:34.1]} 16... exd4 {[%clk 0:01:58.2]}
17. Bxb4 {[%clk 0:02:34.7]} 17... Rfe8 {[%clk 0:01:57.7]} 18. Qd2 {[%clk
0:02:31.6]} 18... Qb5 {[%clk 0:01:55.7]} 19. c3 {[%clk 0:02:27.5]} 19... Qxd5
{[%clk 0:01:54.6]} 20. cxd4 {[%clk 0:02:16.2]} 20... Bf6 {[%clk 0:01:55.5]} 21.
Rac1 {[%clk 0:02:00]} 21... Rb7 {[%clk 0:01:32]} 22. Bc3 {[%clk 0:01:46.4]}
22... Bxd4 {[%clk 0:01:31.5]} 23. Bxd4 {[%clk 0:01:46.7]} 23... Qxd4 {[%clk
0:01:33.4]} 24. Rfe1 {[%clk 0:01:28.7]} 24... Reb8 {[%clk 0:01:23.3]} 25. Re7
{[%clk 0:01:10.7]} 25... Rxb2 {[%clk 0:01:16.9]} 26. Qe1 {[%clk 0:01:10.2]}
26... Kf8 {[%clk 0:01:00.1]} 27. Rexc7 {[%clk 0:00:51.3]} 27... Re8 {[%clk
0:01:00.6]} 28. Rc8 {[%clk 0:00:43.8]} 28... Re2 {[%clk 0:01:00.8]} 29. Qxe2
{[%clk 0:00:39.5]} 1-0

[Event "*** Titled Tuesday Blitz"]
[Site "Chess.com"]
[Date "2018.11.06"]
[Round "10"]
[White "AndrewMcStone"]
[Black "mitrabhaa"]
[Result "0-1"]
[WhiteElo "2145"]
[BlackElo "2589"]
[TimeControl "180+2"]
[EndTime "15:18:13 PST"]
[Termination "mitrabhaa won on time"]

1. d4 {[%clk 0:03:01.9]} 1... c5 {[%clk 0:03:01.9]} 2. d5 {[%clk 0:03:02.1]}
2... d6 {[%clk 0:03:03.1]} 3. c4 {[%clk 0:03:03.4]} 3... Nf6 {[%clk 0:03:04.4]}
4. Nc3 {[%clk 0:03:04.8]} 4... g6 {[%clk 0:03:05.7]} 5. e4 {[%clk 0:03:06.2]}
5... Bg7 {[%clk 0:03:07]} 6. Nge2 {[%clk 0:03:07.7]} 6... O-O {[%clk 0:03:08.4]}
7. Ng3 {[%clk 0:03:09.1]} 7... Na6 {[%clk 0:03:10]} 8. Be2 {[%clk 0:03:04.6]}
8... Nc7 {[%clk 0:03:08.9]} 9. O-O {[%clk 0:03:00.5]} 9... a6 {[%clk 0:03:10.3]}
10. a4 {[%clk 0:03:01.1]} 10... Bd7 {[%clk 0:03:09.8]} 11. Rb1 {[%clk
0:02:56.1]} 11... b5 {[%clk 0:03:10.8]} 12. axb5 {[%clk 0:02:54.2]} 12... axb5
{[%clk 0:03:12.2]} 13. cxb5 {[%clk 0:02:41.6]} 13... Rb8 {[%clk 0:03:10]} 14.
Qa4 {[%clk 0:02:35.6]} 14... Na8 {[%clk 0:03:03.3]} 15. b4 {[%clk 0:02:11.7]}
15... Nb6 {[%clk 0:03:03.9]} 16. Qb3 {[%clk 0:02:07.4]} 16... c4 {[%clk
0:03:00.5]} 17. Bxc4 {[%clk 0:02:03.2]} 17... Qc7 {[%clk 0:03:00.4]} 18. Be2
{[%clk 0:01:49.6]} 18... Rfc8 {[%clk 0:03:00.8]} 19. Bd2 {[%clk 0:01:41.3]}
19... Nc4 {[%clk 0:02:55.5]} 20. Bxc4 {[%clk 0:01:29.6]} 20... Qxc4 {[%clk
0:02:54.8]} 21. Qxc4 {[%clk 0:01:28.9]} 21... Rxc4 {[%clk 0:02:55.2]} 22. Rfc1
{[%clk 0:01:28.7]} 22... Ng4 {[%clk 0:02:53.8]} 23. Nce2 {[%clk 0:00:53]} 23...
Bxb5 {[%clk 0:02:50.9]} 24. Rxc4 {[%clk 0:00:29.9]} 24... Bxc4 {[%clk
0:02:50.5]} 25. f3 {[%clk 0:00:28.4]} 25... Ne5 {[%clk 0:02:50]} 26. Bc3 {[%clk
0:00:26.3]} 26... Bb5 {[%clk 0:02:48.7]} 27. f4 {[%clk 0:00:19.1]} 27... Nd3
{[%clk 0:02:46.6]} 28. Bxg7 {[%clk 0:00:21]} 28... Kxg7 {[%clk 0:02:47.3]} 29.
Nd4 {[%clk 0:00:19.6]} 29... Nxf4 {[%clk 0:02:47.5]} 30. Nc6 {[%clk 0:00:16.6]}
30... Rb7 {[%clk 0:02:47.5]} 31. Kf2 {[%clk 0:00:15.5]} 31... e6 {[%clk
0:02:41.5]} 32. Kf3 {[%clk 0:00:10.3]} 32... Nd3 {[%clk 0:02:36.3]} 33. Nd4
{[%clk 0:00:08.6]} 33... Ne5+ {[%clk 0:02:36.2]} 34. Kf2 {[%clk 0:00:06.3]}
34... exd5 {[%clk 0:02:37.2]} 35. exd5 {[%clk 0:00:07.1]} 35... Bc4 {[%clk
0:02:38.5]} 36. Ne4 {[%clk 0:00:05.9]} 36... Nd3+ {[%clk 0:02:36.9]} 37. Ke3
{[%clk 0:00:06.2]} 37... Nxb4 {[%clk 0:02:37.2]} 38. Nxd6 {[%clk 0:00:07]} 38...
Nxd5+ {[%clk 0:02:36.4]} 39. Ke4 {[%clk 0:00:05.7]} 39... Rxb1 {[%clk
0:02:37.2]} 40. Nxc4 {[%clk 0:00:07.6]} 40... Nf6+ {[%clk 0:02:38.8]} 41. Kf3
{[%clk 0:00:07]} 41... Rb4 {[%clk 0:02:39.7]} 0-1

[Event "*** Titled Tuesday Blitz"]
[Site "Chess.com"]
[Date "2018.11.06"]
[Round "10"]
[White "ZeroRealtorFade"]
[Black "DiogenesSinopeus"]
[Result "1-0"]
[WhiteElo "2231"]
[BlackElo "2392"]
[TimeControl "180+2"]
[EndTime "15:18:15 PST"]
[Termination "ZeroRealtorFade won by resignation"]

1. d4 {[%clk 0:03:01.1]} 1... Nf6 {[%clk 0:03:00.2]} 2. Bf4 {[%clk 0:03:02.2]}
2... d5 {[%clk 0:03:00.6]} 3. e3 {[%clk 0:03:03.4]} 3... e6 {[%clk 0:03:01.2]}
4. c3 {[%clk 0:03:04.6]} 4... c5 {[%clk 0:03:02.8]} 5. Nd2 {[%clk 0:03:06]} 5...
Nc6 {[%clk 0:03:04.3]} 6. Ngf3 {[%clk 0:03:07.2]} 6... Bd6 {[%clk 0:03:06]} 7.
Bg3 {[%clk 0:03:08.3]} 7... O-O {[%clk 0:03:07.3]} 8. Bb5 {[%clk 0:03:09.4]}
8... Be7 {[%clk 0:03:02.3]} 9. Bxc6 {[%clk 0:03:07.3]} 9... bxc6 {[%clk
0:03:03.1]} 10. O-O {[%clk 0:03:08.5]} 10... cxd4 {[%clk 0:02:57.7]} 11. exd4
{[%clk 0:03:09.1]} 11... c5 {[%clk 0:02:57]} 12. Re1 {[%clk 0:03:08.5]} 12...
cxd4 {[%clk 0:02:50.7]} 13. Nxd4 {[%clk 0:03:09]} 13... Bd6 {[%clk 0:02:42.5]}
14. Nc6 {[%clk 0:02:58.3]} 14... Qc7 {[%clk 0:02:41.2]} 15. Ne5 {[%clk
0:02:49.1]} 15... Nd7 {[%clk 0:02:39]} 16. Ndf3 {[%clk 0:02:45]} 16... f6 {[%clk
0:02:37.4]} 17. Nxd7 {[%clk 0:02:40.5]} 17... Bxd7 {[%clk 0:02:39.3]} 18. Bxd6
{[%clk 0:02:34.7]} 18... Qxd6 {[%clk 0:02:41.2]} 19. Qd2 {[%clk 0:02:33.9]}
19... Rab8 {[%clk 0:02:36.6]} 20. Rad1 {[%clk 0:02:33.1]} 20... Rfd8 {[%clk
0:02:26.3]} 21. c4 {[%clk 0:02:09.6]} 21... Bc6 {[%clk 0:01:50.7]} 22. Nd4
{[%clk 0:02:04.5]} 22... dxc4 {[%clk 0:01:38.3]} 23. Rxe6 {[%clk 0:01:57.2]}
23... Rxb2 {[%clk 0:01:07.9]} 24. Qe1 {[%clk 0:01:39.8]} 24... Qxd4 {[%clk
0:00:07.6]} 25. Rxd4 {[%clk 0:01:34.8]} 25... Rxd4 {[%clk 0:00:09.5]} 26. Rxc6
{[%clk 0:01:29.7]} 26... h6 {[%clk 0:00:11]} 27. Qe6+ {[%clk 0:01:09.1]} 1-0

[Event "*** Titled Tuesday Blitz"]
[Site "Chess.com"]
[Date "2018.11.06"]
[Round "10"]
[White "danyuffa"]
[Black "eljanov"]
[Result "1-0"]
[WhiteElo "2705"]
[BlackElo "2830"]
[TimeControl "180+2"]
[EndTime "15:18:21 PST"]
[Termination "danyuffa won by resignation"]

1. d4 {[%clk 0:03:01.9]} 1... Nf6 {[%clk 0:03:00]} 2. c4 {[%clk 0:03:03.1]} 2...
e6 {[%clk 0:03:01.2]} 3. g3 {[%clk 0:03:04.4]} 3... d5 {[%clk 0:03:01]} 4. Bg2
{[%clk 0:03:05.4]} 4... Bb4+ {[%clk 0:03:02.6]} 5. Bd2 {[%clk 0:03:05.8]} 5...
Bd6 {[%clk 0:03:03.8]} 6. Nc3 {[%clk 0:03:06.4]} 6... c6 {[%clk 0:02:55.2]} 7.
e4 {[%clk 0:03:06.4]} 7... dxe4 {[%clk 0:02:56]} 8. Nxe4 {[%clk 0:03:07.3]} 8...
Nxe4 {[%clk 0:02:52.4]} 9. Bxe4 {[%clk 0:03:08.2]} 9... Nd7 {[%clk 0:02:54]} 10.
Nf3 {[%clk 0:03:08.3]} 10... c5 {[%clk 0:02:49.9]} 11. Bc3 {[%clk 0:03:02.4]}
11... O-O {[%clk 0:02:42.7]} 12. Bc2 {[%clk 0:02:50.9]} 12... b6 {[%clk
0:02:27.5]} 13. Qd3 {[%clk 0:02:51.1]} 13... f5 {[%clk 0:02:25.3]} 14. O-O-O
{[%clk 0:02:51.5]} 14... Bb7 {[%clk 0:02:18.8]} 15. Rhe1 {[%clk 0:02:50.1]}
15... Nf6 {[%clk 0:01:28.4]} 16. Rxe6 {[%clk 0:02:40.7]} 16... Be4 {[%clk
0:01:29.4]} 17. Qe2 {[%clk 0:02:41.5]} 17... Qd7 {[%clk 0:01:17.9]} 18. d5
{[%clk 0:02:36.9]} 18... Bxc2 {[%clk 0:01:11.3]} 19. Qxc2 {[%clk 0:02:36.6]}
19... Ne4 {[%clk 0:01:12.9]} 20. Be5 {[%clk 0:02:09.4]} 20... Be7 {[%clk
0:00:53.8]} 21. g4 {[%clk 0:02:09.1]} 21... b5 {[%clk 0:00:43.3]} 22. gxf5
{[%clk 0:02:07]} 22... Ng5 {[%clk 0:00:42.3]} 23. Nxg5 {[%clk 0:02:07]} 23...
Bxg5+ {[%clk 0:00:43.3]} 24. f4 {[%clk 0:02:08.2]} 24... Bf6 {[%clk 0:00:41.8]}
25. cxb5 {[%clk 0:01:46.2]} 25... Qxb5 {[%clk 0:00:41.1]} 26. Bxf6 {[%clk
0:01:43.2]} 26... Rxf6 {[%clk 0:00:41.4]} 27. d6 {[%clk 0:01:43.8]} 27... Rd8
{[%clk 0:00:35.2]} 28. Qe4 {[%clk 0:01:37.6]} 28... Rf7 {[%clk 0:00:28.7]} 29.
d7 {[%clk 0:01:26.4]} 29... Rdxd7 {[%clk 0:00:12.6]} 30. Re8+ {[%clk 0:01:26.2]}
30... Rf8 {[%clk 0:00:13.6]} 31. Qe6+ {[%clk 0:01:17.6]} 31... Rf7 {[%clk
0:00:14.6]} 32. Rxf8+ {[%clk 0:01:18.7]} 1-0

[Event "*** Titled Tuesday Blitz"]
[Site "Chess.com"]
[Date "2018.11.06"]
[Round "10"]
[White "Jenia84"]
[Black "Peroncio"]
[Result "0-1"]
[WhiteElo "2260"]
[BlackElo "2629"]
[TimeControl "180+2"]
[EndTime "15:18:28 PST"]
[Termination "Peroncio won by resignation"]

1. e4 {[%clk 0:03:01.9]} 1... e6 {[%clk 0:03:00.9]} 2. b3 {[%clk 0:03:01.2]}
2... d5 {[%clk 0:03:01.5]} 3. Bb2 {[%clk 0:03:00.7]} 3... a6 {[%clk 0:03:02.9]}
4. Bd3 {[%clk 0:02:55.5]} 4... Nf6 {[%clk 0:03:02.1]} 5. Nc3 {[%clk 0:02:49.9]}
5... c5 {[%clk 0:03:02]} 6. e5 {[%clk 0:02:39]} 6... Nfd7 {[%clk 0:03:02.8]} 7.
f4 {[%clk 0:02:38.5]} 7... g5 {[%clk 0:03:03.8]} 8. Qh5 {[%clk 0:02:34.9]} 8...
gxf4 {[%clk 0:03:02.3]} 9. Nh3 {[%clk 0:02:33.8]} 9... Nc6 {[%clk 0:02:56.3]}
10. Nxf4 {[%clk 0:02:31.8]} 10... Ndxe5 {[%clk 0:02:55.9]} 11. Nxe6 {[%clk
0:02:26.3]} 11... Bxe6 {[%clk 0:02:53.9]} 12. O-O-O {[%clk 0:02:20.7]} 12... Rg8
{[%clk 0:02:45.9]} 13. Rde1 {[%clk 0:02:18.3]} 13... Nxd3+ {[%clk 0:02:38.4]}
14. cxd3 {[%clk 0:02:16.7]} 14... Qg5 {[%clk 0:02:40.1]} 15. Rxe6+ {[%clk
0:02:16.2]} 15... Be7 {[%clk 0:02:38.6]} 16. Qxg5 {[%clk 0:02:00.6]} 16... Rxg5
{[%clk 0:02:40.5]} 17. Re2 {[%clk 0:02:01.3]} 17... O-O-O {[%clk 0:02:38.1]} 18.
Rf1 {[%clk 0:01:56.8]} 18... f5 {[%clk 0:02:29.7]} 19. Nd1 {[%clk 0:01:54.9]}
19... d4 {[%clk 0:02:23.7]} 20. h4 {[%clk 0:01:50.3]} 20... Rh5 {[%clk
0:02:18.8]} 21. Ba3 {[%clk 0:01:45.7]} 21... b6 {[%clk 0:02:12.7]} 22. Nb2
{[%clk 0:01:44.9]} 22... b5 {[%clk 0:01:56.1]} 23. Rfe1 {[%clk 0:01:21.8]} 23...
Bd6 {[%clk 0:01:46.6]} 24. Nd1 {[%clk 0:01:18.6]} 24... b4 {[%clk 0:01:46]} 25.
Bb2 {[%clk 0:01:19.1]} 25... Rxh4 {[%clk 0:01:45.8]} 26. a3 {[%clk 0:01:19.5]}
26... a5 {[%clk 0:01:46.6]} 27. axb4 {[%clk 0:01:20.1]} 27... axb4 {[%clk
0:01:48.5]} 28. Re6 {[%clk 0:01:20.4]} 28... Rg4 {[%clk 0:01:44.6]} 29. Rh1
{[%clk 0:01:18.2]} 29... Rd7 {[%clk 0:01:44.6]} 30. Rhh6 {[%clk 0:01:12.3]}
30... Kc7 {[%clk 0:01:44.4]} 31. Re2 {[%clk 0:01:07.9]} 31... Rdg7 {[%clk
0:01:37.6]} 32. Ree6 {[%clk 0:01:00.8]} 32... Rd7 {[%clk 0:01:32.9]} 33. Re2
{[%clk 0:01:00.2]} 33... Re7 {[%clk 0:01:08.7]} 34. Rxe7+ {[%clk 0:00:54.6]}
34... Nxe7 {[%clk 0:01:10.6]} 35. Rxh7 {[%clk 0:00:54.9]} 35... Rxg2 {[%clk
0:01:11.8]} 36. Kc2 {[%clk 0:00:52.3]} 36... f4 {[%clk 0:01:10.9]} 37. Rf7
{[%clk 0:00:52.1]} 37... Kd7 {[%clk 0:01:12]} 38. Rf6 {[%clk 0:00:51.8]} 38...
Nd5 {[%clk 0:01:11.8]} 39. Bc1 {[%clk 0:00:49.4]} 39... Nxf6 {[%clk 0:01:12.5]}
0-1

[Event "*** Titled Tuesday Blitz"]
[Site "Chess.com"]
[Date "2018.11.06"]
[Round "10"]
[White "lucasmito"]
[Black "hypert"]
[Result "1-0"]
[WhiteElo "2514"]
[BlackElo "2381"]
[TimeControl "180+2"]
[EndTime "15:19:03 PST"]
[Termination "lucasmito won by checkmate"]

1. e4 {[%clk 0:03:01.9]} 1... c5 {[%clk 0:03:00.5]} 2. Nf3 {[%clk 0:03:03]} 2...
Nc6 {[%clk 0:03:02.1]} 3. Bb5 {[%clk 0:03:03]} 3... e6 {[%clk 0:03:02.1]} 4.
Bxc6 {[%clk 0:03:03.4]} 4... bxc6 {[%clk 0:03:03.5]} 5. b3 {[%clk 0:03:03.4]}
5... f6 {[%clk 0:03:03.2]} 6. O-O {[%clk 0:02:36.4]} 6... Qc7 {[%clk 0:02:58.7]}
7. Ba3 {[%clk 0:02:27.7]} 7... Nh6 {[%clk 0:02:58.7]} 8. c4 {[%clk 0:02:20.9]}
8... Nf7 {[%clk 0:02:58.6]} 9. d4 {[%clk 0:02:05.7]} 9... cxd4 {[%clk
0:02:40.4]} 10. Bxf8 {[%clk 0:02:07.6]} 10... Kxf8 {[%clk 0:02:37.8]} 11. Qxd4
{[%clk 0:02:07.2]} 11... Ne5 {[%clk 0:02:37.7]} 12. Nxe5 {[%clk 0:02:05.9]}
12... fxe5 {[%clk 0:02:28.7]} 13. Qd2 {[%clk 0:02:02.3]} 13... h6 {[%clk
0:02:12.5]} 14. f4 {[%clk 0:01:59.9]} 14... Kg8 {[%clk 0:02:12.1]} 15. Nc3
{[%clk 0:01:57.5]} 15... d6 {[%clk 0:01:33.3]} 16. fxe5 {[%clk 0:01:49.4]} 16...
dxe5 {[%clk 0:01:34]} 17. Rad1 {[%clk 0:01:49.4]} 17... Kh7 {[%clk 0:01:23.7]}
18. Rf3 {[%clk 0:01:39.5]} 18... Bb7 {[%clk 0:01:14.6]} 19. Qd7 {[%clk
0:01:38.9]} 19... Qb6+ {[%clk 0:01:15.9]} 20. Kh1 {[%clk 0:01:37]} 20... Rad8
{[%clk 0:01:16.3]} 21. Qxe6 {[%clk 0:01:31.3]} 21... Rxd1+ {[%clk 0:01:16.3]}
22. Nxd1 {[%clk 0:01:31.2]} 22... Rd8 {[%clk 0:01:17.9]} 23. Nc3 {[%clk
0:01:15.9]} 23... Qd4 {[%clk 0:01:15.6]} 24. h3 {[%clk 0:01:14.1]} 24... c5
{[%clk 0:00:22.1]} 25. Nd5 {[%clk 0:00:59.2]} 25... Qxe4 {[%clk 0:00:22.7]} 26.
Nf6+ {[%clk 0:00:55.6]} 26... gxf6 {[%clk 0:00:22]} 27. Qf7+ {[%clk 0:00:56]}
27... Kh8 {[%clk 0:00:23.5]} 28. Qxf6+ {[%clk 0:00:56.1]} 28... Kh7 {[%clk
0:00:22]} 29. Qe7+ {[%clk 0:00:53.6]} 29... Kh8 {[%clk 0:00:18.9]} 30. Qxd8+
{[%clk 0:00:51.8]} 30... Kg7 {[%clk 0:00:20.1]} 31. Qf8+ {[%clk 0:00:48.6]}
31... Kh7 {[%clk 0:00:21]} 32. Rf7+ {[%clk 0:00:40.1]} 32... Kg6 {[%clk
0:00:22.2]} 33. Rf6+ {[%clk 0:00:39.7]} 33... Kh7 {[%clk 0:00:17.2]} 34. Rxh6#
{[%clk 0:00:38.5]} 1-0

[Event "*** Titled Tuesday Blitz"]
[Site "Chess.com"]
[Date "2018.11.06"]
[Round "10"]
[White "dmosesov"]
[Black "nochewycandy"]
[Result "0-1"]
[WhiteElo "2343"]
[BlackElo "2245"]
[TimeControl "180+2"]
[EndTime "15:19:24 PST"]
[Termination "nochewycandy won on time"]

1. e4 {[%clk 0:03:01.9]} 1... g6 {[%clk 0:03:00.4]} 2. d4 {[%clk 0:03:02.1]}
2... Bg7 {[%clk 0:03:02.3]} 3. Nc3 {[%clk 0:03:03.6]} 3... d6 {[%clk 0:03:03.3]}
4. Be3 {[%clk 0:03:03.5]} 4... a6 {[%clk 0:03:04]} 5. f4 {[%clk 0:03:04.4]} 5...
b5 {[%clk 0:03:03.8]} 6. Nf3 {[%clk 0:03:04.2]} 6... Nd7 {[%clk 0:03:04.8]} 7.
Bd3 {[%clk 0:03:04]} 7... c5 {[%clk 0:02:59.6]} 8. e5 {[%clk 0:02:52.8]} 8...
Nh6 {[%clk 0:02:51.2]} 9. dxc5 {[%clk 0:01:41.5]} 9... Nxc5 {[%clk 0:02:41.2]}
10. Bxc5 {[%clk 0:01:06]} 10... dxc5 {[%clk 0:02:43.1]} 11. Be4 {[%clk
0:01:06.8]} 11... Bd7 {[%clk 0:02:34.7]} 12. Bxa8 {[%clk 0:01:05.1]} 12... Qxa8
{[%clk 0:02:36.6]} 13. Nd5 {[%clk 0:00:56.9]} 13... Qc6 {[%clk 0:02:31.6]} 14.
O-O {[%clk 0:00:55.6]} 14... e6 {[%clk 0:02:31.8]} 15. Ne3 {[%clk 0:00:50.7]}
15... O-O {[%clk 0:02:30.5]} 16. c4 {[%clk 0:00:43.6]} 16... f6 {[%clk
0:02:22.4]} 17. Qd6 {[%clk 0:00:31.9]} 17... Qc8 {[%clk 0:02:05.8]} 18. exf6
{[%clk 0:00:26.2]} 18... Bxf6 {[%clk 0:02:03.1]} 19. Ne5 {[%clk 0:00:25.7]}
19... Bxe5 {[%clk 0:01:46.5]} 20. fxe5 {[%clk 0:00:27.6]} 20... Nf7 {[%clk
0:01:43.6]} 21. Qe7 {[%clk 0:00:24]} 21... Nxe5 {[%clk 0:01:38.3]} 22. Rxf8+
{[%clk 0:00:15.3]} 22... Qxf8 {[%clk 0:01:40.2]} 23. Qxf8+ {[%clk 0:00:16.9]}
23... Kxf8 {[%clk 0:01:39]} 24. Rc1 {[%clk 0:00:16.6]} 24... b4 {[%clk 0:01:39]}
25. a3 {[%clk 0:00:17.4]} 25... a5 {[%clk 0:01:39]} 26. axb4 {[%clk 0:00:18.1]}
26... axb4 {[%clk 0:01:39.2]} 27. Ra1 {[%clk 0:00:19.7]} 27... Ke7 {[%clk
0:01:35]} 28. Ra7 {[%clk 0:00:17.9]} 28... Kd6 {[%clk 0:01:31.8]} 29. Kf1 {[%clk
0:00:08.9]} 29... Nd3 {[%clk 0:01:31.8]} 30. b3 {[%clk 0:00:08.6]} 30... Nc1
{[%clk 0:01:32.8]} 31. Ng4 {[%clk 0:00:08.5]} 31... Nxb3 {[%clk 0:01:31.7]} 32.
Nf6 {[%clk 0:00:09.8]} 32... Bc6 {[%clk 0:01:32.8]} 33. Nxh7 {[%clk 0:00:05.9]}
33... Nd2+ {[%clk 0:01:33.1]} 34. Ke2 {[%clk 0:00:07.5]} 34... Nxc4 {[%clk
0:01:35]} 35. Nf8 {[%clk 0:00:08.3]} 35... Bxg2 {[%clk 0:01:34.5]} 36. Nxg6
{[%clk 0:00:08.2]} 36... b3 {[%clk 0:01:34.4]} 37. Ra1 {[%clk 0:00:02.4]} 37...
b2 {[%clk 0:01:33.9]} 38. Rg1 {[%clk 0:00:03.8]} 38... Be4 {[%clk 0:01:35.8]}
39. Nf4 {[%clk 0:00:05]} 39... b1=Q {[%clk 0:01:36.4]} 40. Rxb1 {[%clk
0:00:06.6]} 40... Bxb1 {[%clk 0:01:38.3]} 41. h4 {[%clk 0:00:08.2]} 41... Ke5
{[%clk 0:01:37.5]} 42. Kf3 {[%clk 0:00:07.3]} 42... Kf5 {[%clk 0:01:34.3]} 43.
Ne2 {[%clk 0:00:03.1]} 43... Be4+ {[%clk 0:01:33.7]} 44. Kf2 {[%clk 0:00:02.8]}
44... e5 {[%clk 0:01:33]} 0-1

[Event "*** Titled Tuesday Blitz"]
[Site "Chess.com"]
[Date "2018.11.06"]
[Round "10"]
[White "Alopekos"]
[Black "Kawhi_Leonard2"]
[Result "0-1"]
[WhiteElo "2484"]
[BlackElo "2303"]
[TimeControl "180+2"]
[EndTime "15:19:40 PST"]
[Termination "Kawhi_Leonard2 won on time"]

1. e4 {[%clk 0:03:01.9]} 1... c5 {[%clk 0:03:00]} 2. Nf3 {[%clk 0:03:02.3]} 2...
d6 {[%clk 0:03:01.1]} 3. d4 {[%clk 0:03:02.5]} 3... cxd4 {[%clk 0:03:02.3]} 4.
Nxd4 {[%clk 0:03:04.4]} 4... Nf6 {[%clk 0:03:03.3]} 5. Nc3 {[%clk 0:03:04.6]}
5... g6 {[%clk 0:03:04.5]} 6. Be3 {[%clk 0:03:03.3]} 6... Bg7 {[%clk 0:03:05.9]}
7. f3 {[%clk 0:03:05]} 7... Nc6 {[%clk 0:03:06.8]} 8. Qd2 {[%clk 0:03:05.5]}
8... O-O {[%clk 0:03:08.3]} 9. O-O-O {[%clk 0:03:07]} 9... d5 {[%clk 0:03:09.6]}
10. Nxc6 {[%clk 0:03:07.4]} 10... bxc6 {[%clk 0:03:10.1]} 11. Bc4 {[%clk
0:03:08.7]} 11... e6 {[%clk 0:02:36.1]} 12. Bb3 {[%clk 0:03:05.1]} 12... Bb7
{[%clk 0:02:31.6]} 13. Na4 {[%clk 0:02:58]} 13... Nd7 {[%clk 0:02:29.9]} 14. h4
{[%clk 0:02:21.4]} 14... Qc7 {[%clk 0:01:59.4]} 15. Bf4 {[%clk 0:01:59.1]} 15...
e5 {[%clk 0:01:54.3]} 16. Bh6 {[%clk 0:01:59.7]} 16... d4 {[%clk 0:01:53]} 17.
h5 {[%clk 0:01:55.8]} 17... Bf6 {[%clk 0:01:18.3]} 18. hxg6 {[%clk 0:01:31.4]}
18... hxg6 {[%clk 0:01:17]} 19. Bxf8 {[%clk 0:01:28.3]} 19... Nxf8 {[%clk
0:01:18.1]} 20. Nc5 {[%clk 0:01:28.7]} 20... a5 {[%clk 0:01:10.4]} 21. Kb1
{[%clk 0:00:54.1]} 21... Qe7 {[%clk 0:01:10.2]} 22. Nxb7 {[%clk 0:00:50.8]}
22... Qxb7 {[%clk 0:01:10.7]} 23. a4 {[%clk 0:00:48.9]} 23... Bg7 {[%clk
0:01:07]} 24. Qd3 {[%clk 0:00:49.1]} 24... Nd7 {[%clk 0:01:05.3]} 25. Qc4 {[%clk
0:00:45.2]} 25... Nb6 {[%clk 0:00:59.5]} 26. Qc5 {[%clk 0:00:42.4]} 26... Rb8
{[%clk 0:00:51.6]} 27. Qxa5 {[%clk 0:00:43.1]} 27... Nc4 {[%clk 0:00:46.9]} 28.
Qc5 {[%clk 0:00:42.8]} 28... Ne3 {[%clk 0:00:47.1]} 29. Rd2 {[%clk 0:00:32]}
29... Qc7 {[%clk 0:00:36.8]} 30. Qa3 {[%clk 0:00:06]} 30... c5 {[%clk
0:00:34.6]} 31. Bd5 {[%clk 0:00:07.3]} 31... c4 {[%clk 0:00:30.2]} 32. Ka1
{[%clk 0:00:02.6]} 32... Bf8 {[%clk 0:00:30.4]} 33. Qa2 {[%clk 0:00:03.9]} 33...
c3 {[%clk 0:00:27.3]} 34. Bxf7+ {[%clk 0:00:02.3]} 34... Kg7 {[%clk 0:00:18.1]}
0-1